Cogmind - Beta 12 @@@ ROGUE MODE // 2023.03.29 @ 18:42:19 Player: MrProgressor Result: Destroyed by G-47 Trooper with Particle Gun Performance ------------- Evolutions (0) 0 Regions Visited (2) 400 Robots Destroyed (31) 155 Value Destroyed (713) 713 Prototype IDs (2) 40 Alien Tech Used (0) 0 Bonus (0) 0 TOTAL SCORE: 1308 Bonus ------- None Cogmind --------- Core Integrity 0/250 Matter 300/300 Energy 235/250 System Corruption 0% Temperature Cool (93) Movement Treading (240) Ox1 Location -10/Mines Parts ------- > --- POWER (1) -------- Ion Engine > --- PROPULSION (2) --- Light Treads Compact Wheel > --- UTILITY (2) ------ Improved Heat Sink Large Storage Unit > --- WEAPON (2) ------- Beam Cannon Beam Cannon > --- INVENTORY (15) --- Wheel Wheel Wheel Large Storage Unit High-capacity Matter Pod (200) Sensor Array Signal Interpreter Beam Cannon Beam Cannon Beam Cannon Beam Cannon Grenade Launcher Mining Laser Peak State ------------ > --- POWER ------------ Ion Engine > --- PROPULSION ------- Wheel Wheel > --- UTILITY ---------- Improved Heat Sink Large Storage Unit > --- WEAPON ----------- Small Laser Small Laser > --- INVENTORY -------- Ion Engine Light Treads Wheel Compact Wheel Large Storage Unit Sensor Array Signal Interpreter Grenade Launcher Mining Laser Mining Laser [Rating: 10] Favorites ----------- Power Ion Engine Engine Ion Engine Propulsion Wheel Treads Light Treads Leg Aluminum Leg Wheel Wheel Utility Improved Heat Sink Device Improved Heat Sink Storage Large Storage Unit Weapon Small Laser Energy Gun Small Laser Energy Cannon Beam Cannon Ballistic Gun Assault Rifle Launcher Grenade Launcher Special Weapon Mining Laser Build | -11 -10 -10 ------- Run | Jun Mat Min Slots Evolved . | . . . Power . | . . . Propulsion . | . . . Utility . | . . . Weapon . | . . . Parts Attached 25 | . 19 6 Power 2 | . 2 . Engine 2 | . 2 . Core . | . . . Reactor . | . . . Propulsion 12 | . 8 4 Treads 5 | . 3 2 Leg . | . . . Wheel 7 | . 5 2 Hover . | . . . Flight . | . . . Utility 2 | . 2 . Device 1 | . 1 . Storage 1 | . 1 . Processor . | . . . Hackware . | . . . Protection . | . . . Artifact . | . . . Weapon 9 | . 7 2 Energy Gun 3 | . 3 . Energy Cannon 3 | . 2 1 Ballistic Gun . | . . . Ballistic Cannon . | . . . Launcher 1 | . . 1 Special Weapon 2 | . 2 . Impact Weapon . | . . . Slashing Weapon . | . . . Piercing Weapon . | . . . Special Melee Weapon . | . . . Unidentified Prototypes . | . . . Parts Lost 6 | . 4 2 Power 1 | . 1 . Propulsion 3 | . 1 2 Utility . | . . . Weapon 2 | . 2 . Highest Loss Streak 2 | . 2 2 To Critical Strikes . | . . . Average Slot Usage (%) 97 | . 97 97 Engine 14 | . 14 14 Treads 7 | . 7 7 Leg 2 | . 2 . Wheel 17 | . 17 18 Device 13 | . 12 14 Storage 14 | . 14 14 Energy Gun 12 | . 14 . Energy Cannon 9 | . 7 20 Ballistic Gun 4 | . 5 . Launcher 1 | . . 7 Naked Turns . | . . . Heaviest Build 32 | 13 32 32 Greatest Support 32 | 20 32 20 Greatest Overweight (x) 1 | . 1 1 Average Overweight (x) . | . . 1 Largest Inventory Capacity 15 | . 15 15 Average Capacity 12 | . 11 15 Most Carried 15 | . 15 15 Average Carried 11 | . 11 14 Final Capacity 15 | 8 15 15 Final Carried 15 | 6 15 13 Class Distribution -------------------- 92% | Mutant 7% | Scavenger-Mutant Dominant Class ---------------- Mutant | -10/Materials Mutant | -10/Mines Resources | -11 -10 -10 ----------- Run | Jun Mat Min Matter Collected 792 | 200 522 70 Remotely . | . . . Salvage Created 1050 | . 824 226 Parts 55 | . 46 9 Haulers Intercepted 1 | . 1 . Recyclers Shooed 1 | . 1 . Parts Field Recycled . | . . . Retrieved Matter . | . . . Parts Self-Destructed . | . . . Prevented . | . . . Kills | -11 -10 -10 ------- Run | Jun Mat Min Combat Hostiles Destroyed 22 | . 16 6 Guns 16 | . 16 . Cannons 3 | . . 3 AOE 3 | . . 3 Classes Destroyed 6 | . 6 . Worker 2 | . 2 . Hauler 1 | . 1 . Recycler 3 | . 2 1 Watcher 3 | . 3 . Swarmer 6 | . 3 3 Grunt 16 | . 13 3 Best Kill Streak 4 | . 4 3 Combat Bots Only 3 | . 3 3 Max Kills in Single Turn 2 | . 1 2 Gunslinging . | . . . Exploded 2 | . . 2 Melee . | . . . Uniques/NPCs Destroyed . | . . . Combat | -11 -10 -10 -------- Run | Jun Mat Min Damage Taken 1130 | . 766 364 Core 254 | . 137 117 Absorbed by Shields . | . . . Core Remaining (%) 100 | 100 . . Volleys Fired 94 | . 75 19 Largest 2 | . 2 2 Hottest 140 | . 140 120 Shots Fired 174 | . 138 36 Gun 134 | . 134 . Cannon 34 | . . 34 Launcher 2 | . . 2 Special 4 | . 4 . Kinetic 49 | . 49 . Thermal 123 | . 89 34 Explosive 2 | . . 2 Electromagnetic . | . . . Robot Hit Streak 13 | . 13 12 Robot Miss Streak 3 | . 3 2 Penetration Max . | . . . Secondary Targets 2 | . 2 . Max Gunslinging Chain 1 | . 1 . Shots Hit Robots 124 | . 98 26 Core Hits 52 | . 43 9 Critical Kills . | . . . Critical Parts Destroyed 1 | . 1 . Critical Strikes 1 | . 1 . Destroy 1 | . 1 . Melee Attacks . | . . . Impact . | . . . Slashing . | . . . Piercing . | . . . Sneak Attacks . | . . . Combat Hostiles . | . . . Follow-up Attacks . | . . . Damage Inflicted 1734 | . 1190 544 Guns 1118 | . 1118 . Cannons 453 | . . 453 Explosions 91 | . . 91 Melee . | . . . Ramming . | . . . Kinetic 381 | . 381 . Thermal 1262 | . 809 453 Explosive 91 | . . 91 Electromagnetic . | . . . Impact . | . . . Slashing . | . . . Piercing . | . . . Highest Corruption . | . . . Average Corruption . | . . . Corruption Purged . | . . . Corruption Blocked . | . . . Overload Shots . | . . . Overflow Damage . | . . . Projectiles . | . . . Explosions . | . . . Melee . | . . . Knockbacks . | . . . Impact . | . . . Kinetic . | . . . Secondary . | . . . Self-Inflicted Damage 20 | . . 20 Shots 1 | . . 1 Rammed 1 | . 1 . Targets Rammed 1 | . 1 . Kicked . | . . . Crushed . | . . . Highest Temperature 319 | . 39 319 Average Temperature 111 | . 21 144 Received Heat Transfer 618 | . 405 213 Siege Activations . | . . . Robots Corrupted . | . . . Combat Hostiles . | . . . Parts Fried . | . . . Impact Corruptions . | . . . Robots Melted . | . . . Combat Hostiles . | . . . Parts Melted 6 | . 3 3 Heat Transferred 2787 | . 1825 962 Parts Sabotaged . | . . . Parts Stolen . | . . . Parts Stripped . | . . . Power Chain Reactions . | . . . Missiles Intercepted . | . . . Alert | -11 -10 -10 ------- Run | Jun Mat Min Peak Influence 313 | . 313 202 Initial 61 | . . 61 Average 184 | . 190 153 Maximum Alert Level 1 | . 1 1 Low Security (%) 67 | . 62 99 Level 1 32 | . 37 . Level 2 . | . . . Level 3 . | . . . Level 4 . | . . . Level 5 . | . . . High Security . | . . . Max Security . | . . . Squads Dispatched 4 | . 4 . Investigation 2 | . 2 . Extermination . | . . . Reinforcement 2 | . 2 . Assault . | . . . Garrison . | . . . Intercept . | . . . Searches Triggered . | . . . Construction Impeded . | . . . Haulers Reinforced . | . . . Active Scanning Responses . | . . . Cargo Convoy Interrupts . | . . . Stealth | -11 -10 -10 --------- Run | Jun Mat Min Distress Signals 3 | . 3 . Communications Jammed . | . . . Distress Signals . | . . . Times Spotted 34 | . 27 7 Peak Tracking Total 5 | . 5 4 Tactical Retreats 3 | . 3 . Traps | -11 -10 -10 ------- Run | Jun Mat Min Traps Triggered 2 | . 2 . Indirectly . | . . . Trap Hack Attempts . | . . . Triggered . | . . . Disarmed . | . . . Reprogrammed . | . . . Reused . | . . . Traps Extracted . | . . . Installed . | . . . Triggered . | . . . Machines | -11 -10 -10 ---------- Run | Jun Mat Min Machines Disabled . | . . . Max in Single Turn . | . . . Machines Repaired . | . . . Machines Sabotaged . | . . . Overloaded Fab Kills . | . . . Hacking | -11 -10 -10 --------- Run | Jun Mat Min Machines Accessed 1 | . 1 . Terminals 1 | . 1 . Fabricators . | . . . Repair Stations . | . . . Recycling Units . | . . . Scanalyzers . | . . . Garrison Access . | . . . Total Hacks 2 | . 2 . Successful 1 | . 1 . Failed 1 | . 1 . Catastrophic . | . . . Database Lockouts . | . . . Manual . | . . . Terminals 2 | . 2 . Fabricators . | . . . Repair Stations . | . . . Recycling Units . | . . . Scanalyzers . | . . . Garrison Access . | . . . Terminal Hacks 1 | . 1 . Prototype ID Bank 1 | . 1 . Fabricator Hacks . | . . . Repair Station Hacks . | . . . Recycling Unit Hacks . | . . . Scanalyzer . | . . . Garrison Access Hacks . | . . . Unauthorized Hacks . | . . . Terminals . | . . . Fabricators . | . . . Repair Stations . | . . . Recycling Units . | . . . Scanalyzers . | . . . Garrison Access . | . . . Data Cores Recovered . | . . . Used . | . . . Hacking Detections 1 | . 1 . Full Trace Events . | . . . Feedback Events . | . . . Feedback Blocked . | . . . Robot Schematics Acquired . | . . . Robots Built . | . . . Authchips . | . . . Time . | . . . Total Robot Build Rating . | . . . Part Schematics Acquired . | . . . Parts Built . | . . . Authchips . | . . . Time . | . . . Total Part Build Rating . | . . . Parts Repaired . | . . . Time . | . . . Parts Recycled . | . . . Recycled Matter . | . . . Retrieved Matter . | . . . Retrieved Components . | . . . Parts Scanalyzed . | . . . Part Schematics Acquired . | . . . Parts Damaged . | . . . Bothacking | -11 -10 -10 ------------ Run | Jun Mat Min Used RIF Installer . | . . . Robots Hacked . | . . . Non-combat . | . . . Combat . | . . . Robot Hacks Applied . | . . . Relay Couplers Released . | . . . Fabnet Peak Effective % . | . . . Robots Rewired . | . . . Allies Hacked . | . . . Hacks Repelled . | . . . Allies | -11 -10 -10 -------- Run | Jun Mat Min Total Allies . | . . . Largest Group . | . . . Highest-Rated Group . | . . . Highest-Rated Ally . | . . . Total Orders . | . . . Ally Attacks . | . . . Total Damage . | . . . Kills . | . . . Allies Corrupted . | . . . Allies Melted . | . . . Intel | -11 -10 -10 ------- Run | Jun Mat Min Robot Analysis Total . | . . . Derelict Logs Recovered . | . . . Drone Launches . | . . . Drone Recoveries . | . . . Exploration | -11 -10 -10 ------------- Run | Jun Mat Min Turns Passed 1249 | . 1075 174 Spaces Moved 557 | 1 478 78 Core . | . . . Treads 213 | . 204 9 Legs 57 | 1 56 . Wheels 287 | . 218 69 Hover . | . . . Flight . | . . . Fastest Speed 80 | 120 80 95 Average Speed 152 | 120 159 113 Slowest Speed 240 | 120 240 240 Overloaded Moves . | . . . Propulsion Burnouts . | . . . Robots Hopped . | . . . Cave-ins Triggered . | . . . Exploration Rate (%) 29 | 2 66 20 Regions Visited 2 Branch Regions 1 Pre-discovered Areas . | . . . Known Exits Taken . | . . . Unknown Exits Taken 2 | 1 1 . Scrap Searched . | . . . Spaces Dug 6 | . . 6 Terrain Destroyed 16 | . . 16 Melee . | . . . Projectile . | . . . AOE 16 | . . 16 Terrain Rammed . | . . . Walls Destroyed . | . . . Machines Disabled . | . . . Actions | -11 -10 -10 --------- Run | Jun Mat Min Total 774 | . 647 127 Wait 64 | . 40 24 Move 555 | . 477 78 Hop . | . . . Pick Up 21 | . 21 . Fast Attach 4 | . 4 . Attach 8 | . 6 2 Detach 1 | . 1 . Swap 13 | . 9 4 Drop 13 | . 13 . Fire 94 | . 75 19 Melee . | . . . Ram . | . . . Kick . | . . . Crush 1 | . 1 . Escape Stasis . | . . . Rewire . | . . . Trap . | . . . Miscellaneous . | . . . Route ------- -11/Junkyard -10/Materials (discovered 2 exits: [*Mat] / [*Min]) -10/Mines History --------- Turn | Location | Event 1 | -11/Junkyard | Discovered new exit (range 0) 1 | -11/Junkyard | Entered Materials 295 | -10/Materials | Discovered new exit (range 8) 314 | -10/Materials | Build established: Mutant 557 | -10/Materials | Core integrity fell below 50% 626 | -10/Materials | Discovered new exit (range 16) 1076 | -10/Materials | Entered Mines 1205 | -10/Mines | Core integrity fell below 20% 1250 | -10/Mines | Destroyed by G-47 Trooper with Particle Gun Last Messages --------------- here?" 01156_ 0G-Q32(g): "Well, at least you look like you can take care of yourself!" 01158_ 0G-Q32(g): "I have the funny feeling that things are about to get a lot worse around here, see you around!" 01158_ 0G-Q32(g) slips back into the shadows. 01185_ Lgt. Treads destroyed. 01193_ Aluminum Leg melted. 01193_ Heat Sink melted. 01193_ G-34 Mercenary destroyed. 01196_ Wheel destroyed. 01196_ Critical hit (Burn: +37). 01209_ G-47 Trooper heat spikes uncontrollably. 01210_ G-47 Trooper destroyed. 01211_ Acquired 58 matter. 01218_ R-06 Scavenger collects Aluminum Leg. 01222_ Acquired 12 matter. 01228_ R-06 Scavenger destroyed. 01249_ Ion Engine melted. 01249_ G-34 Mercenary destroyed. Map ----- +----------------------------------------------------+ | | | | | | | | | | | | | | | | | | | | | | | | | | | | | | | ?????????????????????????????????????????????????? | | ????????????????????########?????????????????????? | | ????????????????????# ?????????????????????? | | ????????????????????# """????????????????????? | | ????###?????????????# """#???????????????????? | | ???## #????????????# """#???????????????????? | | ??## #######?????# #???????????????????? | | ??# #?????# """#???????????????????? | | ??# #### #?????# """#???????????????????? | | ?# #???# ##????# """#???????????????????? | | # #???## ###??# @ #???????????????????? | | #???## ##?#####g##########?????????????? | | ???## ####### % #???????? | | ????# ## ##########?????????????? | | ?????# #### ##=####???????????????????? | | ?????# #??# ##%# ##??????????????????? | | ??????# ## ##?# r= #??????????????????? | | ???????# ### #?# ! ???????????? | | ??????# #?# #?##### ???????? | | ?????# #??# #?????# #???????? | | ????# #???# #?????## #### ###???????? | | ????# #??### #??????####???? ????????? | | ????## ???## ###????????????? ????????? | | ?????# ????# * [ #??????????????? ###????????? | | ????????????# %[ #???????????????? #?????????? | | ????????????# ##???????????????????????????? | | ????????????#### #????????????????????????????? | | ???????????????# #????????????????????????????? | | ???????????????## ##????????????????????????????? | | ????????????????####?????????????????????????????? | | ?????????????????????????????????????????????????? | | ?????????????????????????????????????????????????? | | ?????????????????????????????????????????????????? | | ?????????????????????????????????????????????????? | | ?????????????????????????????????????????????????? | +----------------------------------------------------+ Best States ------------- Heat Dissipation 39 Energy Generation 10 Energy Capacity 250 Matter Stores 300 Matter Capacity 300 Sight Range 16 Terrain Scan Density 10 Evasion (%) 55 Recoil Reduction 1 Item Schematics ----------------- None Robot Schematics ------------------ None Fabricated ------------ Nothing Alien Tech Used ----------------- None Achievements -------------- None Challenges ------------ None Game ------ Seed TacticalAlphaProtection Manual? 0 Play Time 00:19:25 Cumulative 111.5 hours Start 2023.03.29 @ 18:22:24 End 2023.03.29 @ 18:42:19 Sessions 1 Manual Loads 0 Difficulty Rogue Special Mode None Game No. 47 Rogue 47 Adventurer 0 Explorer 0 Win Type - Total 0 Types 0/0/0/0/0/0/0/0/0 Lore% 43 Gallery% 52 Achievement% 40 Wizard Run 0 Options --------- ASCII 0 Keyboard 0 Movement Mouse Keybinds 1 Fullscreen 2 Font 18/X11 Map View 76x50 Tactical HUD 1 Map Filters NONE Filters NONE Steam 1 RUN: ab1f9371-44b8-4a4b-9ad2-5a3fd2eb387c